[Event "3rd FIDE WCCC Rapid U10 2019"]
[Site "Minsk"]
[Date "2019.08.16"]
[Round "3.6"]
[White "Shidlovskij, Artem"]
[Black "Krasnoperov, Platon"]
[Result "1/2-1/2"]
[ECO "D31"]
[WhiteElo "1668"]
[BlackElo "1471"]
[Annotator "NA"]
[PlyCount "175"]
[EventDate "2019.08.16"]
[EventType "swiss"]
[EventCountry "BLR"]
[SourceTitle "playchess.com"]
[Source "ChessBase"]
[SourceQuality "1"]
[TimeControl "600+5"]

1. d4 {[%emt 0:00:00]} d5 {[%emt 0:00:00]} 2. c4 {[%emt 0:00:00]} e6 {[%emt 0:00:00]} 3. Nf3 {[%emt 0:00:00]} c6 {[%emt 0:00:00]} 4. Nc3 {[%emt 0:00:00]} dxc4 {[%emt 0:00:00]} 5. a4 {[%emt 0:00:05]} Bb4 {[%emt 0:00:00]} 6. e4 {[%emt 0:01:59]} b5 {[%emt 0:00:02]} 7. Bd2 {[%emt 0:00:15]} Bxc3 {[%emt 0:00:04]} 8. Bxc3 {[%emt 0:00:02]} Nf6 {[%emt 0:00:05]} 9. Qc2 {[%emt 0:00:34]} O-O {[%emt 0:00:19]} 10. Be2 {[%emt 0:00:27]} a6 {[%emt 0:00:05]} 11. O-O {[%emt 0:00:04]} Bb7 {[%emt 0:00:00]} 12. e5 {[%emt 0:01:10]} Nd5 {[%emt 0:00:08]} 13. Bd2 {[%emt 0:00:35]} Nd7 {[%emt 0:00:07]} 14. Ng5 {[%emt 0:00:18]} g6 {[%emt 0:00:09]} 15. Ne4 {[%emt 0:00:07]} c5 {[%emt 0:01:13]} 16. Nd6 {[%emt 0:00:38]} Qc7 {[%emt 0:00:12]} 17. axb5 {[%emt 0:00:26]} cxd4 18. Qxc4 {[%emt 0:01:11]} Rab8 {[%emt 0:02:58]} 19. Qxc7 {[%emt 0:00:20]} Nxc7 {[%emt 0:00:02]} 20. bxa6 {[%emt 0:00:02]} Bd5 {[%emt 0:00:19]} 21. b4 {[%emt 0:00:15]} Nxe5 {[%emt 0:00:14]} 22. Rfc1 {[%emt 0:00:40]} Na8 {[%emt 0:01:28]} 23. Bf4 {[%emt 0:00:47]} f6 {[%emt 0:00:07]} 24. Bxe5 {[%emt 0:01:09]} fxe5 {[%emt 0:00:01]} 25. Rcb1 {[%emt 0:00:42]} Rfd8 {[%emt 0:00:21]} 26. Nc4 {[%emt 0:00:02]} e4 {[%emt 0:00:31]} 27. Ne5 {[%emt 0:00:01]} d3 28. Bd1 Kg7 {[%emt 0:02:09]} 29. f3 {[%emt 0:00:13]} Rb6 {[%emt 0:01:04]} 30. fxe4 {[%emt 0:00:16]} Bxe4 {[%emt 0:00:02]} 31. Nc4 {[%emt 0:00:01]} Rbb8 {[%emt 0:00:28]} 32. Bf3 {[%emt 0:00:07]} Bxf3 {[%emt 0:00:06]} 33. gxf3 {[%emt 0:00:02]} Rbc8 {[%emt 0:00:01]} 34. Ne5 {[%emt 0:00:08]} Kf6 {[%emt 0:00:18]} 35. Ng4+ {[%emt 0:00:03]} Kf5 {[%emt 0:00:05]} 36. b5 {[%emt 0:00:02]} Nb6 {[%emt 0:00:03]} 37. Ne3+ {[%emt 0:00:08]} Kf4 {[%emt 0:00:02]} 38. Kf2 {[%emt 0:00:01]} e5 {[%emt 0:00:13]} 39. Rb4+ {[%emt 0:00:01]} Rd4 {[%emt 0:00:03]} 40. Ng2+ {[%emt 0:00:09]} Kf5 {[%emt 0:00:03]} 41. Ne3+ {[%emt 0:00:03]} Ke6 {[%emt 0:00:04]} 42. Rxd4 {[%emt 0:00:05]} exd4 {[%emt 0:00:01]} 43. Ng2 {[%emt 0:00:13]} Rc2+ {[%emt 0:00:01]} 44. Kf1 {[%emt 0:00:02]} Rb2 {[%emt 0:00:08]} 45. Nf4+ {[%emt 0:00:04]} Kd6 {[%emt 0:00:07]} 46. Nxd3 {[%emt 0:00:05]} Rxb5 {[%emt 0:00:01]} 47. a7 {[%emt 0:00:06]} Na8 {[%emt 0:00:01]} 48. Ra6+ {[%emt 0:00:11]} Rb6 {[%emt 0:00:13]} 49. Ra4 {[%emt 0:00:05]} Kd5 {[%emt 0:00:11]} 50. Ra5+ {[%emt 0:00:03]} Kc4 {[%emt 0:00:05]} 51. Ne5+ {[%emt 0:00:06]} Kc3 {[%emt 0:00:02]} 52. Ra3+ {[%emt 0:00:04]} Kb2 {[%emt 0:00:14]} 53. Rd3 {[%emt 0:00:10]} Rb7 {[%emt 0:00:06]} 54. Rxd4 {[%emt 0:00:03]} Rxa7 {[%emt 0:00:01]} 55. Kg2 {[%emt 0:00:02]} Nc7 {[%emt 0:00:02]} 56. Rd7 {[%emt 0:00:03]} Kc3 {[%emt 0:00:05]} 57. Rxh7 {[%emt 0:00:06]} Ra2+ {[%emt 0:00:01]} 58. Kg3 {[%emt 0:00:02]} Ne6 {[%emt 0:00:04]} 59. Nxg6 {[%emt 0:00:10]} Kd4 {[%emt 0:00:03]} 60. Rd7+ {[%emt 0:00:01]} Kc5 {[%emt 0:00:05]} 61. h4 {[%emt 0:00:03]} Ra1 {[%emt 0:00:03]} 62. Rd2 {[%emt 0:00:06]} Ng7 {[%emt 0:00:05]} 63. Rg2 {[%emt 0:00:06]} Ra6 {[%emt 0:00:02]} 64. Kf4 {[%emt 0:00:09]} Rf6+ {[%emt 0:00:01]} 65. Ke4 {[%emt 0:00:04]} Nh5 {[%emt 0:00:10]} 66. Rg5+ {[%emt 0:00:01]} Kd6 {[%emt 0:00:02]} 67. Rxh5 {[%emt 0:00:04]} Rxg6 {[%emt 0:00:01]} 68. f4 {[%emt 0:00:01]} Rg8 {[%emt 0:00:02]} 69. f5 {[%emt 0:00:04]} Ke7 {[%emt 0:00:05]} 70. Kf4 {[%emt 0:00:01]} Rg1 {[%emt 0:00:04]} 71. Rg5 {[%emt 0:00:09]} Rf1+ {[%emt 0:00:01]} 72. Kg4 {[%emt 0:00:01]} Kf6 {[%emt 0:00:06]} 73. Rg6+ {[%emt 0:00:03]} Kf7 {[%emt 0:00:01]} 74. h5 {[%emt 0:00:16]} Rg1+ {[%emt 0:00:06]} 75. Kf4 {[%emt 0:00:02]} Rh1 {[%emt 0:00:06]} 76. h6 {[%emt 0:00:04]} Rf1+ {[%emt 0:00:04]} 77. Ke4 {[%emt 0:00:08]} Re1+ {[%emt 0:00:01]} 78. Kd3 {[%emt 0:00:06]} Rf1 {[%emt 0:00:03]} 79. Rg5 {[%emt 0:00:15]} Rh1 {[%emt 0:00:05]} 80. Rg6 {[%emt 0:00:04]} Rf1 {[%emt 0:00:03]} 81. Ke4 {[%emt 0:00:04]} Re1+ {[%emt 0:00:01]} 82. Kd3 {[%emt 0:00:05]} Rf1 {[%emt 0:00:01]} 83. Rg5 {[%emt 0:00:05]} Rh1 {[%emt 0:00:07]} 84. h7 {[%emt 0:00:04]} Rxh7 {[%emt 0:00:02]} 85. Ke4 {[%emt 0:00:01]} Rh4+ {[%emt 0:00:03]} 86. Ke5 {[%emt 0:00:01]} Rh1 {[%emt 0:00:02]} 87. Rg4 {[%emt 0:00:04]} Re1+ {[%emt 0:00:04]} 88. Re4 {[%emt 0:00:05]} 1/2-1/2

[Event "3rd FIDE WCCC Rapid U10 2019"]
[Site "Minsk"]
[Date "2019.08.16"]
[Round "4.1"]
[White "Plotnikov, Boris"]
[Black "Zverev, Lev"]
[Result "0-1"]
[ECO "A06"]
[WhiteElo "1446"]
[BlackElo "1881"]
[Annotator "NA"]
[PlyCount "64"]
[EventDate "2019.08.16"]
[EventType "swiss"]
[EventCountry "BLR"]
[SourceTitle "playchess.com"]
[Source "ChessBase"]
[SourceQuality "1"]
[TimeControl "600+5"]

1. Nf3 {[%emt 0:00:00]} d5 {[%emt 0:00:00]} 2. g3 {[%emt 0:00:00]} e6 {[%emt 0:00:00]} 3. Bg2 {[%emt 0:00:00]} Nf6 {[%emt 0:00:00]} 4. O-O {[%emt 0:00:02]} Bd6 {[%emt 0:00:02]} 5. c4 {[%emt 0:00:03]} O-O {[%emt 0:00:03]} 6. d3 {[%emt 0:00:03]} b6 {[%emt 0:00:04]} 7. Nc3 {[%emt 0:00:07]} Bb7 {[%emt 0:00:01]} 8. b3 {[%emt 0:00:19]} c5 {[%emt 0:00:22]} 9. Bb2 {[%emt 0:00:17]} Nbd7 {[%emt 0:00:03]} 10. Rc1 {[%emt 0:00:13]} Rc8 {[%emt 0:00:03]} 11. Rc2 {[%emt 0:00:10]} Qe7 {[%emt 0:00:52]} 12. Qa1 {[%emt 0:00:06]} d4 {[%emt 0:00:10]} 13. Nd1 {[%emt 0:00:58]} Ba8 {[%emt 0:00:10]} 14. e3 {[%emt 0:00:25]} e5 {[%emt 0:00:02]} 15. Re1 {[%emt 0:00:19]} Qd8 {[%emt 0:00:35]} 16. exd4 {[%emt 0:00:41]} exd4 {[%emt 0:00:20]} 17. Rce2 {[%emt 0:00:07]} Qc7 {[%emt 0:00:04]} 18. b4 {[%emt 0:00:42]} Bxf3 {[%emt 0:00:12]} 19. Bxf3 {[%emt 0:00:02]} Ne5 {[%emt 0:00:01]} 20. Rxe5 {[%emt 0:00:34]} Bxe5 {[%emt 0:00:02]} 21. bxc5 {[%emt 0:00:17]} bxc5 {[%emt 0:00:01]} 22. Qc1 {[%emt 0:00:08]} h6 {[%emt 0:00:10]} 23. Ba3 {[%emt 0:00:14]} Bd6 {[%emt 0:00:05]} 24. Qd2 {[%emt 0:00:15]} Rb8 {[%emt 0:00:09]} 25. Nb2 {[%emt 0:00:02]} Qb6 {[%emt 0:00:16]} 26. Na4 {[%emt 0:00:13]} Qc7 {[%emt 0:00:06]} 27. Nb2 {[%emt 0:00:01]} Nd7 {[%emt 0:00:08]} 28. Bd5 {[%emt 0:00:30]} Rb6 {[%emt 0:00:24]} 29. Qa5 {[%emt 0:00:29]} Qc8 {[%emt 0:00:31]} 30. Qd2 {[%emt 0:00:09]} Qa6 {[%emt 0:00:16]} 31. Kg2 {[%emt 0:00:39]} Qxa3 {[%emt 0:00:03]} 32. Nd1 {[%emt 0:00:02]} Qb4 {[%emt 0:00:16]} 0-1

[Event "3rd FIDE WCCC Rapid U10 2019"]
[Site "Minsk"]
[Date "2019.08.16"]
[Round "4.2"]
[White "Yadegar, Radin"]
[Black "Vetokhin, Savva"]
[Result "0-1"]
[ECO "E46"]
[WhiteElo "1844"]
[BlackElo "2016"]
[Annotator "NA"]
[PlyCount "88"]
[EventDate "2019.08.16"]
[EventType "swiss"]
[EventCountry "BLR"]
[SourceTitle "playchess.com"]
[Source "ChessBase"]
[SourceQuality "1"]
[TimeControl "600+5"]

1. d4 {[%emt 0:00:00]} Nf6 {[%emt 0:00:00]} 2. c4 {[%emt 0:00:00]} e6 {[%emt 0:00:00]} 3. Nc3 {[%emt 0:00:03]} Bb4 {[%emt 0:00:00]} 4. e3 {[%emt 0:00:09]} O-O {[%emt 0:00:06]} 5. Nge2 {[%emt 0:00:21]} d5 {[%emt 0:00:07]} 6. a3 {[%emt 0:00:06]} Bd6 {[%emt 0:00:15]} 7. c5 {[%emt 0:00:48]} Be7 {[%emt 0:00:03]} 8. g3 {[%emt 0:00:16]} c6 {[%emt 0:00:15]} 9. Bg2 {[%emt 0:00:02]} Nbd7 {[%emt 0:00:02]} 10. O-O {[%emt 0:00:04]} e5 {[%emt 0:00:02]} 11. b4 {[%emt 0:00:06]} a5 {[%emt 0:00:44]} 12. b5 {[%emt 0:00:45]} h5 {[%emt 0:00:42]} 13. Rb1 {[%emt 0:00:46]} h4 {[%emt 0:00:05]} 14. bxc6 {[%emt 0:00:16]} bxc6 {[%emt 0:00:01]} 15. Na4 {[%emt 0:00:40]} Ba6 {[%emt 0:00:02]} 16. Re1 {[%emt 0:01:06]} e4 {[%emt 0:00:09]} 17. Bd2 {[%emt 0:01:08]} Bd3 {[%emt 0:00:41]} 18. Rb2 {[%emt 0:00:16]} Qc7 {[%emt 0:00:08]} 19. Nf4 {[%emt 0:00:38]} Bb5 {[%emt 0:00:15]} 20. Nc3 {[%emt 0:00:49]} Bc4 {[%emt 0:00:04]} 21. Na4 {[%emt 0:00:11]} Rab8 {[%emt 0:01:20]} 22. Qc2 g5 {[%emt 0:00:20]} 23. Nh3 {[%emt 0:01:24]} Ng4 {[%emt 0:01:12]} 24. Qc3 {[%emt 0:01:05]} Bb5 25. Nb6 Nxb6 {[%emt 0:00:11]} 26. cxb6 {[%emt 0:00:07]} Qxb6 {[%emt 0:00:21]} 27. a4 {[%emt 0:00:50]} Bb4 {[%emt 0:00:02]} 28. Qc2 {[%emt 0:00:04]} Bd3 {[%emt 0:00:01]} 29. Qd1 {[%emt 0:00:06]} f5 {[%emt 0:00:12]} 30. Bxb4 {[%emt 0:00:02]} axb4 {[%emt 0:00:01]} 31. Nxg5 {[%emt 0:00:11]} hxg3 {[%emt 0:00:00]} 32. hxg3 {[%emt 0:00:01]} Rf6 {[%emt 0:00:27]} 33. Bh3 {[%emt 0:00:13]} Rg6 {[%emt 0:00:05]} 34. Bxg4 {[%emt 0:00:02]} Rxg5 {[%emt 0:00:04]} 35. Bh3 {[%emt 0:00:02]} Qc7 {[%emt 0:00:05]} 36. Bf1 {[%emt 0:00:09]} Bxf1 {[%emt 0:00:06]} 37. Rxf1 {[%emt 0:00:01]} f4 {[%emt 0:00:12]} 38. exf4 {[%emt 0:00:01]} Qxf4 {[%emt 0:00:02]} 39. Qc1 {[%emt 0:00:19]} Qf6 {[%emt 0:00:11]} 40. Qc5 {[%emt 0:00:01]} e3 {[%emt 0:00:32]} 41. Kg2 Rf8 {[%emt 0:00:12]} 42. Qc1 {[%emt 0:00:09]} Qf3+ {[%emt 0:00:01]} 43. Kg1 {[%emt 0:00:03]} Rh5 {[%emt 0:00:05]} 44. Qxe3 {[%emt 0:00:14]} Rh1# {[%emt 0:00:01]} 0-1

[Event "3rd FIDE WCCC Rapid U10 2019"]
[Site "Minsk"]
[Date "2019.08.16"]
[Round "4.3"]
[White "Pham, Tran Gia Phuc"]
[Black "Koshulyan, Egor A."]
[Result "1/2-1/2"]
[ECO "A52"]
[WhiteElo "1645"]
[BlackElo "1872"]
[Annotator "NA"]
[PlyCount "103"]
[EventDate "2019.08.16"]
[EventType "swiss"]
[EventCountry "BLR"]
[SourceTitle "playchess.com"]
[Source "ChessBase"]
[SourceQuality "1"]
[TimeControl "600+5"]

1. d4 {[%emt 0:00:00]} Nf6 {[%emt 0:00:00]} 2. c4 {[%emt 0:00:00]} e5 {[%emt 0:00:00]} 3. dxe5 {[%emt 0:00:00]} Ng4 {[%emt 0:00:00]} 4. Nf3 {[%emt 0:00:00]} Bc5 {[%emt 0:00:00]} 5. e3 {[%emt 0:00:01]} Nc6 {[%emt 0:00:00]} 6. Nc3 {[%emt 0:00:00]} O-O {[%emt 0:00:04]} 7. Be2 {[%emt 0:00:01]} Ngxe5 {[%emt 0:00:02]} 8. Nxe5 {[%emt 0:00:04]} Nxe5 {[%emt 0:00:02]} 9. O-O {[%emt 0:00:01]} Re8 {[%emt 0:00:01]} 10. Kh1 {[%emt 0:00:05]} a5 {[%emt 0:00:02]} 11. b3 {[%emt 0:00:08]} Ra6 {[%emt 0:00:01]} 12. f4 {[%emt 0:00:15]} Nc6 {[%emt 0:00:41]} 13. Nd5 {[%emt 0:00:11]} Nb4 {[%emt 0:00:18]} 14. Rf3 {[%emt 0:01:09]} Rd6 {[%emt 0:02:11]} 15. Rg3 {[%emt 0:00:25]} c6 {[%emt 0:00:47]} 16. Bb2 {[%emt 0:00:12]} Rg6 {[%emt 0:00:53]} 17. Rxg6 {[%emt 0:00:20]} hxg6 {[%emt 0:00:05]} 18. Nxb4 {[%emt 0:00:03]} axb4 {[%emt 0:00:02]} 19. Bd4 {[%emt 0:04:57]} Qe7 {[%emt 0:00:16]} 20. Bf3 {[%emt 0:00:38]} Bxd4 {[%emt 0:00:19]} 21. exd4 {[%emt 0:00:01]} Qe3 {[%emt 0:00:05]} 22. g3 {[%emt 0:00:02]} d6 {[%emt 0:00:04]} 23. Kg2 {[%emt 0:00:25]} Bf5 {[%emt 0:00:34]} 24. d5 {[%emt 0:01:18]} c5 {[%emt 0:00:29]} 25. Qg1 {[%emt 0:00:48]} Bh3+ {[%emt 0:00:22]} 26. Kxh3 {[%emt 0:00:02]} Qxf3 {[%emt 0:00:02]} 27. Re1 {[%emt 0:00:03]} Re2 {[%emt 0:00:09]} 28. Rxe2 {[%emt 0:00:23]} Qxe2 {[%emt 0:00:01]} 29. Qa1 {[%emt 0:00:00]} b5 {[%emt 0:01:23]} 30. cxb5 {[%emt 0:00:02]} Qh5+ {[%emt 0:00:02]} 31. Kg2 {[%emt 0:00:20]} Qxd5+ {[%emt 0:00:03]} 32. Kg1 {[%emt 0:00:02]} Qd3 {[%emt 0:00:25]} 33. Qf1 {[%emt 0:00:01]} Qd4+ {[%emt 0:00:16]} 34. Qf2 {[%emt 0:00:00]} Qd5 {[%emt 0:00:13]} 35. Qe2 {[%emt 0:00:03]} Kf8 {[%emt 0:00:02]} 36. Qc4 {[%emt 0:00:13]} Qb7 {[%emt 0:00:54]} 37. Qd3 {[%emt 0:00:39]} d5 {[%emt 0:00:14]} 38. Kf2 {[%emt 0:00:02]} Qa8 {[%emt 0:00:28]} 39. Qe2 {[%emt 0:00:02]} Qa7 {[%emt 0:00:11]} 40. Kf3 {[%emt 0:00:04]} Qb7 {[%emt 0:00:04]} 41. Kf2 {[%emt 0:00:01]} Qc7 {[%emt 0:00:02]} 42. Qd3 {[%emt 0:00:10]} Qb7 {[%emt 0:00:07]} 43. Qe2 {[%emt 0:00:07]} Qe7 {[%emt 0:00:20]} 44. Qd3 {[%emt 0:00:02]} Qb7 {[%emt 0:00:11]} 45. Qe2 {[%emt 0:00:02]} Qb6 {[%emt 0:00:05]} 46. Kf3 {[%emt 0:00:04]} Qc7 {[%emt 0:00:09]} 47. Qd3 {[%emt 0:00:04]} Qb7 {[%emt 0:00:21]} 48. Kf2 {[%emt 0:00:02]} Ke7 {[%emt 0:00:04]} 49. Qe3+ {[%emt 0:00:01]} Kd6 50. Qe5+ Kd7 51. Qxg7 Qxb5 52. Qe5 1/2-1/2

[Event "3rd FIDE WCCC Rapid U10 2019"]
[Site "Minsk"]
[Date "2019.08.16"]
[Round "4.4"]
[White "Bukreev, Stanislav"]
[Black "Lisenkov, Svyatoslav"]
[Result "1-0"]
[ECO "E62"]
[WhiteElo "1257"]
[BlackElo "1478"]
[Annotator "NA"]
[PlyCount "153"]
[EventDate "2019.08.16"]
[EventType "swiss"]
[EventCountry "BLR"]
[SourceTitle "playchess.com"]
[Source "ChessBase"]
[SourceQuality "1"]
[TimeControl "600+5"]

1. d4 {[%emt 0:00:00]} Nf6 {[%emt 0:00:00]} 2. c4 {[%emt 0:00:01]} g6 {[%emt 0:00:00]} 3. Nc3 {[%emt 0:00:02]} Bg7 {[%emt 0:00:00]} 4. Nf3 {[%emt 0:00:02]} d6 {[%emt 0:00:03]} 5. g3 {[%emt 0:00:03]} O-O {[%emt 0:00:03]} 6. Bg2 {[%emt 0:00:02]} Nc6 {[%emt 0:00:02]} 7. O-O {[%emt 0:00:05]} Bf5 {[%emt 0:00:03]} 8. d5 {[%emt 0:00:21]} Na5 {[%emt 0:00:02]} 9. Nd2 {[%emt 0:00:13]} c6 {[%emt 0:00:06]} 10. e4 {[%emt 0:00:21]} Bg4 {[%emt 0:00:06]} 11. Qc2 {[%emt 0:00:29]} cxd5 {[%emt 0:00:06]} 12. cxd5 {[%emt 0:00:13]} Rc8 {[%emt 0:00:32]} 13. h3 {[%emt 0:00:08]} Bd7 {[%emt 0:00:13]} 14. Nb3 {[%emt 0:00:42]} Ne8 {[%emt 0:01:32]} 15. Bd2 {[%emt 0:00:39]} Nc4 {[%emt 0:00:08]} 16. Rac1 {[%emt 0:00:15]} Nxd2 {[%emt 0:00:28]} 17. Qxd2 {[%emt 0:00:13]} b5 {[%emt 0:00:24]} 18. Ne2 {[%emt 0:00:18]} Qb6 {[%emt 0:02:14]} 19. Rxc8 {[%emt 0:00:15]} Bxc8 {[%emt 0:00:02]} 20. Rc1 {[%emt 0:00:01]} Bd7 {[%emt 0:00:19]} 21. Ned4 {[%emt 0:00:07]} Nc7 {[%emt 0:00:28]} 22. Nc6 {[%emt 0:00:11]} Bxc6 {[%emt 0:01:09]} 23. Rxc6 {[%emt 0:00:05]} Qb8 {[%emt 0:00:12]} 24. Qc2 {[%emt 0:00:16]} Na8 {[%emt 0:00:38]} 25. Bf1 {[%emt 0:00:32]} Nb6 {[%emt 0:01:12]} 26. Na5 {[%emt 0:02:09]} Nc4 {[%emt 0:01:13]} 27. Bxc4 {[%emt 0:00:36]} bxc4 {[%emt 0:00:02]} 28. Nxc4 {[%emt 0:00:02]} Bd4 {[%emt 0:00:50]} 29. b3 {[%emt 0:00:15]} Bc5 {[%emt 0:00:08]} 30. a3 {[%emt 0:00:10]} Rc8 {[%emt 0:00:02]} 31. b4 {[%emt 0:00:18]} Bd4 {[%emt 0:00:05]} 32. Na5 {[%emt 0:00:07]} Re8 {[%emt 0:00:02]} 33. Nb3 {[%emt 0:00:10]} Bb6 {[%emt 0:00:04]} 34. Qc4 {[%emt 0:00:10]} f6 {[%emt 0:00:09]} 35. Nd4 {[%emt 0:00:10]} Kf7 {[%emt 0:00:09]} 36. Ne6 {[%emt 0:00:05]} Kg8 {[%emt 0:00:04]} 37. Kg2 {[%emt 0:00:03]} Kf7 {[%emt 0:00:02]} 38. a4 {[%emt 0:00:05]} a5 {[%emt 0:00:09]} 39. b5 {[%emt 0:00:51]} Kg8 {[%emt 0:00:05]} 40. Nf4 {[%emt 0:00:05]} Kf7 {[%emt 0:00:05]} 41. Ne2 {[%emt 0:00:02]} Qb7 {[%emt 0:00:05]} 42. Nd4 {[%emt 0:00:04]} Bxd4 {[%emt 0:00:05]} 43. Qxd4 {[%emt 0:00:01]} Rc8 {[%emt 0:00:05]} 44. Qc4 {[%emt 0:00:09]} Re8 {[%emt 0:00:01]} 45. Rc7 {[%emt 0:00:02]} Qb6 {[%emt 0:00:02]} 46. Rc6 {[%emt 0:00:02]} Qb7 {[%emt 0:00:01]} 47. Qc3 {[%emt 0:00:02]} Ra8 {[%emt 0:00:04]} 48. Qd4 {[%emt 0:00:03]} Rb8 {[%emt 0:00:09]} 49. Qc3 {[%emt 0:00:05]} Ra8 {[%emt 0:00:02]} 50. Kf3 {[%emt 0:00:03]} Kf8 {[%emt 0:00:13]} 51. Rc7 {[%emt 0:00:06]} Qb6 {[%emt 0:00:05]} 52. Qc6 {[%emt 0:00:01]} Qb8 {[%emt 0:00:08]} 53. h4 {[%emt 0:00:19]} h5 {[%emt 0:00:05]} 54. Ke2 {[%emt 0:00:04]} Kf7 {[%emt 0:00:03]} 55. Ke3 {[%emt 0:00:02]} Kf8 {[%emt 0:00:01]} 56. Kf3 {[%emt 0:00:00]} Kf7 {[%emt 0:00:02]} 57. Qd7 {[%emt 0:00:06]} Qe8 {[%emt 0:00:08]} 58. Qc6 {[%emt 0:00:03]} Qb8 {[%emt 0:00:04]} 59. Rb7 {[%emt 0:00:10]} Qd8 {[%emt 0:00:02]} 60. b6 {[%emt 0:00:09]} Rc8 {[%emt 0:00:01]} 61. Rc7 {[%emt 0:00:01]} Rxc7 {[%emt 0:00:19]} 62. Qxc7 {[%emt 0:00:04]} Qa8 {[%emt 0:00:04]} 63. b7 {[%emt 0:00:07]} Qa6 {[%emt 0:00:02]} 64. b8=Q {[%emt 0:00:07]} Qf1 {[%emt 0:00:06]} 65. Qb2 {[%emt 0:00:17]} Qh1+ {[%emt 0:00:02]} 66. Ke3 {[%emt 0:00:01]} Qe1+ {[%emt 0:00:06]} 67. Qe2 {[%emt 0:00:01]} Qb4 {[%emt 0:00:08]} 68. Qcc4 {[%emt 0:00:01]} Qb1 {[%emt 0:00:02]} 69. Kf3 {[%emt 0:00:03]} Qh1+ {[%emt 0:00:03]} 70. Ke3 {[%emt 0:00:00]} Qb1 {[%emt 0:00:04]} 71. Qec2 {[%emt 0:00:03]} Qe1+ {[%emt 0:00:03]} 72. Q4e2 {[%emt 0:00:00]} Qh1 {[%emt 0:00:05]} 73. Qc8 {[%emt 0:00:04]} Kg7 {[%emt 0:00:05]} 74. Qe6 {[%emt 0:00:02]} Qc1+ {[%emt 0:00:03]} 75. Qd2 {[%emt 0:00:05]} Qc5+ {[%emt 0:00:17]} 76. Ke2 {[%emt 0:00:03]} Kf8 {[%emt 0:00:03]} 77. Qh6+ {[%emt 0:00:02]} 1-0

[Event "3rd FIDE WCCC Rapid U10 2019"]
[Site "Minsk"]
[Date "2019.08.16"]
[Round "4.5"]
[White "Misiuk, Martynas"]
[Black "Tiulyagin, Matvey"]
[Result "1/2-1/2"]
[ECO "C00"]
[WhiteElo "1331"]
[BlackElo "1348"]
[Annotator "NA"]
[PlyCount "58"]
[EventDate "2019.08.16"]
[EventType "swiss"]
[EventCountry "BLR"]
[SourceTitle "playchess.com"]
[Source "ChessBase"]
[SourceQuality "1"]
[TimeControl "600+5"]

1. e4 {[%emt 0:00:00]} e6 {[%emt 0:00:00]} 2. d4 {[%emt 0:00:00]} b6 {[%emt 0:00:00]} 3. Nf3 {[%emt 0:00:10]} Bb7 {[%emt 0:00:00]} 4. Nc3 {[%emt 0:00:01]} Bb4 {[%emt 0:00:00]} 5. Bd3 {[%emt 0:00:05]} Nf6 {[%emt 0:00:04]} 6. Bg5 {[%emt 0:00:11]} h6 {[%emt 0:00:12]} 7. Bxf6 {[%emt 0:00:06]} Qxf6 {[%emt 0:00:03]} 8. O-O {[%emt 0:00:06]} a6 {[%emt 0:00:15]} 9. Qe2 {[%emt 0:00:16]} d6 {[%emt 0:00:13]} 10. Rad1 {[%emt 0:00:13]} Nd7 {[%emt 0:00:09]} 11. e5 {[%emt 0:00:32]} Bxf3 {[%emt 0:00:11]} 12. exf6 {[%emt 0:00:06]} Bxe2 {[%emt 0:00:08]} 13. fxg7 {[%emt 0:00:02]} Rg8 {[%emt 0:00:08]} 14. Nxe2 {[%emt 0:00:10]} b5 {[%emt 0:00:14]} 15. c3 {[%emt 0:00:27]} Ba5 {[%emt 0:00:04]} 16. Rfe1 {[%emt 0:00:27]} O-O-O {[%emt 0:00:10]} 17. a4 {[%emt 0:00:46]} c6 {[%emt 0:00:15]} 18. Ra1 {[%emt 0:00:43]} Bc7 {[%emt 0:00:19]} 19. axb5 {[%emt 0:00:07]} axb5 {[%emt 0:00:02]} 20. Ra6 {[%emt 0:00:28]} Kb7 {[%emt 0:00:04]} 21. Rea1 {[%emt 0:00:07]} Bb6 {[%emt 0:00:07]} 22. c4 {[%emt 0:00:30]} bxc4 {[%emt 0:00:09]} 23. Bxc4 {[%emt 0:00:05]} Rxg7 {[%emt 0:00:05]} 24. R6a3 {[%emt 0:00:40]} Rg4 {[%emt 0:00:31]} 25. h3 {[%emt 0:00:51]} Rg5 {[%emt 0:00:14]} 26. Rf3 {[%emt 0:00:33]} Rg7 {[%emt 0:00:22]} 27. Ba6+ {[%emt 0:00:44]} Kc7 {[%emt 0:00:06]} 28. Rc1 {[%emt 0:00:55]} Nb8 {[%emt 0:00:11]} 29. Bc4 {[%emt 0:00:09]} Kb7 {[%emt 0:00:07]} 1/2-1/2

[Event "3rd FIDE WCCC Rapid U10 2019"]
[Site "Minsk"]
[Date "2019.08.16"]
[Round "4.6"]
[White "Zemlyanskii, Ivan"]
[Black "Gusev, Mikhail"]
[Result "1-0"]
[ECO "A58"]
[WhiteElo "1571"]
[BlackElo "1598"]
[Annotator "NA"]
[PlyCount "63"]
[EventDate "2019.08.16"]
[EventType "swiss"]
[EventCountry "BLR"]
[SourceTitle "playchess.com"]
[Source "ChessBase"]
[SourceQuality "1"]
[TimeControl "600+5"]

1. d4 {[%emt 0:00:00]} Nf6 {[%emt 0:00:00]} 2. c4 {[%emt 0:00:00]} c5 {[%emt 0:00:00]} 3. d5 {[%emt 0:00:00]} b5 {[%emt 0:00:00]} 4. cxb5 {[%emt 0:00:01]} a6 {[%emt 0:00:00]} 5. bxa6 {[%emt 0:00:02]} g6 {[%emt 0:00:01]} 6. Nc3 {[%emt 0:00:03]} Bg7 {[%emt 0:00:02]} 7. Nf3 {[%emt 0:00:06]} O-O {[%emt 0:00:04]} 8. e4 {[%emt 0:00:03]} Qa5 {[%emt 0:00:10]} 9. Bd2 {[%emt 0:00:34]} d6 {[%emt 0:00:03]} 10. Bd3 {[%emt 0:00:34]} Bxa6 {[%emt 0:00:05]} 11. Bxa6 {[%emt 0:00:07]} Qxa6 {[%emt 0:00:01]} 12. Qc2 {[%emt 0:00:40]} Ng4 {[%emt 0:00:21]} 13. h3 {[%emt 0:00:22]} Ne5 {[%emt 0:00:01]} 14. Nxe5 {[%emt 0:00:04]} Bxe5 {[%emt 0:00:03]} 15. h4 {[%emt 0:00:24]} Nd7 {[%emt 0:00:15]} 16. h5 {[%emt 0:00:19]} Bd4 {[%emt 0:00:46]} 17. Ne2 {[%emt 0:00:50]} Ne5 {[%emt 0:00:12]} 18. Rh3 {[%emt 0:00:21]} Rab8 {[%emt 0:01:18]} 19. Bc3 {[%emt 0:00:11]} Bxc3+ {[%emt 0:00:06]} 20. bxc3 {[%emt 0:00:02]} c4 {[%emt 0:00:42]} 21. hxg6 {[%emt 0:00:46]} fxg6 {[%emt 0:00:27]} 22. Qd2 {[%emt 0:01:50]} Nd3+ {[%emt 0:00:15]} 23. Kf1 {[%emt 0:00:30]} Nxf2 {[%emt 0:00:17]} 24. Rf3 {[%emt 0:00:35]} Nxe4 {[%emt 0:00:21]} 25. Qe3 {[%emt 0:00:42]} Nf6 {[%emt 0:02:11]} 26. Nd4 {[%emt 0:00:24]} Rf7 {[%emt 0:02:30]} 27. Qe6 {[%emt 0:00:39]} Re8 {[%emt 0:01:21]} 28. Rxf6 {[%emt 0:00:37]} exf6 {[%emt 0:00:01]} 29. Qxe8+ {[%emt 0:00:01]} Rf8 {[%emt 0:00:06]} 30. Qd7 {[%emt 0:00:08]} h5 {[%emt 0:00:28]} 31. Ne6 {[%emt 0:00:05]} Rf7 {[%emt 0:00:00]} 32. Qe8+ {[%emt 0:00:01]} 1-0